bitfinex/quotes_BTCUSD_20260117
["timestamp","ask_amount","ask_price","bid_price","bid_amount"]
[1768639014048,0.01050607,95183.0,95179.0,0.01050651]
[1768639014812,0.01050607,95183.0,95178.0,0.01050662]
[1768639015649,0.01050618,95182.0,95178.0,0.01050662]
[1768639015855,0.01050618,95182.0,95177.0,0.01050674]
[1768639016055,0.01050618,95182.0,95178.0,0.01050662]
[1768639017649,0.01050607,95183.0,95179.0,0.01050651]
[1768639021619,0.01050596,95184.0,95180.0,0.0105064]
[1768639021824,0.01050574,95186.0,95181.0,0.01050629]
[1768639022003,0.01050596,95184.0,95180.0,0.0105064]
[1768639022444,0.01050596,95184.0,95179.0,0.01050651]
[1768639023264,0.01050607,95183.0,95178.0,0.01050662]
[1768639023436,0.01050607,95183.0,95179.0,0.01050651]
[1768639025247,0.01050607,95183.0,95178.0,0.01050662]
[1768639025939,0.01050618,95182.0,95178.0,0.01050662]
[1768639026093,0.01050629,95181.0,95177.0,0.01050674]
[1768639028797,0.0105064,95180.0,95175.0,0.01050696]
[1768639028912,0.01050651,95179.0,95174.0,0.13778707]
[1768639029114,0.01050662,95178.0,95174.0,0.13778707]
[1768639029746,0.01050651,95179.0,95175.0,0.01050696]
[1768639031946,0.01050651,95179.0,95174.0,0.13778707]
[1768639032603,0.01050662,95178.0,95174.0,0.13778707]
[1768639032795,0.01050674,95177.0,95174.0,0.12728]
[1768639034233,0.01050662,95178.0,95174.0,0.12728]
[1768639034439,0.0105064,95180.0,95175.0,0.01050696]
[1768639034645,0.01050629,95181.0,95176.0,0.01050685]
[1768639034868,0.01050596,95184.0,95179.0,0.01050651]
[1768639036194,0.01050607,95183.0,95179.0,0.01050651]
[1768639036927,0.01050607,95183.0,95178.0,0.01050662]
[1768639037137,0.01050618,95182.0,95178.0,0.01050662]
[1768639037333,0.01050618,95182.0,95177.0,0.01050674]
[1768639038140,0.01050618,95182.0,95178.0,0.01050662]
[1768639040271,0.01050618,95182.0,95177.0,0.01050674]
[1768639042032,0.01050629,95181.0,95176.0,0.01050685]
[1768639042567,0.01050629,95181.0,95177.0,0.01050674]
[1768639042799,0.01050618,95182.0,95177.0,0.01050674]
[1768639042936,0.01050629,95181.0,95177.0,0.01050674]
[1768639045228,0.01050585,95185.0,95179.0,0.01050651]
[1768639045498,0.01050585,95185.0,95180.0,0.0105064]
[1768639046291,0.01050585,95185.0,95181.0,0.01050629]
[1768639049964,0.0001595,95189.0,95186.0,0.01050574]
[1768639050178,0.01050552,95188.0,95183.0,0.01050607]
[1768639050582,0.06303324,95188.0,95183.0,0.01050607]
[1768639050784,0.01050563,95187.0,95182.0,0.01050618]
[1768639052258,0.01050563,95187.0,95183.0,0.01050607]
[1768639053499,0.01050563,95187.0,95182.0,0.01050618]
[1768639053713,0.01050574,95186.0,95182.0,0.01050618]
[1768639054156,0.01050563,95187.0,95182.0,0.01050618]
[1768639054157,0.01050552,95188.0,95182.0,0.06303698]
[1768639054672,0.01113794,95189.0,95182.0,0.06303698]
[1768639055124,0.00063253,95189.0,95186.0,0.01050574]
[1768639055498,0.00063253,95189.0,95185.0,0.01050585]
[1768639055999,0.00063253,95189.0,95186.0,0.01050574]
[1768639056654,0.00063253,95189.0,95187.0,0.05252768]
[1768639056858,0.00063253,95189.0,95186.0,0.06303432]
[1768639057097,0.00063253,95189.0,95188.0,0.05252762]
[1768639057948,0.00063253,95189.0,95188.0,0.04791345]
[1768639064131,0.0004,95192.0,95189.0,0.06303237]
[1768639064294,0.00045462,95192.0,95189.0,0.06303237]
[1768639065079,0.00045462,95192.0,95189.0,0.06303243]
[1768639065610,0.00045462,95192.0,95189.0,0.01050541]
[1768639066924,0.00045462,95192.0,95190.0,0.0525261]
[1768639067493,0.00045462,95192.0,95191.0,0.05252597]
[1768639067694,0.00045462,95192.0,95189.0,0.063032]
[1768639067893,0.00045462,95192.0,95191.0,0.05252597]
[1768639069412,0.00045462,95192.0,95189.0,0.01050541]
[1768639069931,0.00045462,95192.0,95191.0,0.05252597]
[1768639071401,0.00045462,95192.0,95189.0,0.06303142]
[1768639071767,0.00045462,95192.0,95189.0,0.01050541]
[1768639072350,0.00045462,95192.0,95189.0,0.0104268]
[1768639072955,0.00045462,95192.0,95189.0,0.06295383]
[1768639073591,0.00045462,95192.0,95189.0,0.0104268]
[1768639074066,0.00045462,95192.0,95191.0,0.05252597]
[1768639074267,0.00045462,95192.0,95190.0,0.05252638]
[1768639074474,0.00045462,95192.0,95191.0,0.05252597]
[1768639075086,0.00045462,95192.0,95190.0,0.05252641]
[1768639075298,0.00045462,95192.0,95190.0,0.05252652]
[1768639078628,0.00045462,95192.0,95189.0,0.07011754]
[1768639079045,0.00045462,95192.0,95189.0,0.01759048]
[1768639079247,0.00045462,95192.0,95190.0,0.05969012]
[1768639079621,0.00045462,95192.0,95190.0,0.0071636]
[1768639080089,0.00045462,95192.0,95190.0,0.05969003]
[1768639080666,0.00045462,95192.0,95189.0,0.06295373]
[1768639080869,0.00045462,95192.0,95188.0,0.01050552]
[1768639081193,0.00045462,95192.0,95189.0,0.01050541]
[1768639082276,0.00045462,95192.0,95188.0,0.01050552]
[1768639083292,0.0109597,95192.0,95188.0,0.01050552]
[1768639084223,0.01050519,95191.0,95186.0,0.01050574]
[1768639084388,0.01050519,95191.0,95187.0,0.01050563]
[1768639085209,0.0109597,95192.0,95188.0,0.01050552]
[1768639085551,0.00045462,95192.0,95188.0,0.01050552]
[1768639086314,0.0109597,95192.0,95188.0,0.01050552]
[1768639086519,0.0109597,95192.0,95187.0,0.01050563]
[1768639086727,0.00045462,95192.0,95188.0,0.01050552]
[1768639087268,0.0109597,95192.0,95188.0,0.01050552]
[1768639087826,0.01050519,95191.0,95187.0,0.01050563]
[1768639089918,0.0109597,95192.0,95189.0,0.01050541]
[1768639089919,0.00045462,95192.0,95189.0,0.01050541]
[1768639090351,0.0109597,95192.0,95188.0,0.01050552]
[1768639090703,0.00045462,95192.0,95189.0,0.01050541]
[1768639094180,0.00045462,95192.0,95189.0,0.06303221]
[1768639094824,0.00045462,95192.0,95190.0,0.05252642]
[1768639095031,0.00045462,95192.0,95189.0,0.01050541]
[1768639095866,0.00045462,95192.0,95189.0,0.06303241]
[1768639097733,0.00045462,95192.0,95190.0,0.05252647]
[1768639100700,0.00045462,95192.0,95191.0,0.05252597]
[1768639100899,0.00045462,95192.0,95191.0,0.00716086]
[1768639101097,0.00045462,95192.0,95190.0,0.05252649]
[1768639101898,0.00045462,95192.0,95191.0,0.05252597]
[1768639102097,0.06302568,95200.0,95196.0,0.01050464]
[1768639102098,0.0105042,95200.0,95196.0,0.01050464]
[1768639102368,0.02183669,95199.0,95193.0,0.0630296]
[1768639102769,0.02183669,95199.0,95195.0,0.01050475]
[1768639103114,0.01133238,95199.0,95195.0,0.01050475]
[1768639103970,0.02183669,95199.0,95195.0,0.01050475]
[1768639104187,0.01133238,95199.0,95195.0,0.01043555]
[1768639104528,0.01133238,95199.0,95196.0,0.01050464]
[1768639104850,0.01133238,95199.0,95195.0,0.01043555]
[1768639107697,0.02183669,95199.0,95195.0,0.01043555]
[1768639108040,0.02183669,95199.0,95195.0,0.01023921]
[1768639110886,0.01133238,95199.0,95196.0,0.01050464]
[1768639111192,0.00042774,95199.0,95195.0,0.01023921]
[1768639111390,0.00042774,95199.0,95196.0,0.01050464]
[1768639111636,0.01050442,95198.0,95194.0,0.01050486]
[1768639111840,0.01041359,95198.0,95194.0,0.01050486]
[1768639112256,0.01093205,95199.0,95195.0,0.01050475]
[1768639112459,0.01093205,95199.0,95194.0,0.01050486]
[1768639112834,0.01050442,95198.0,95194.0,0.01050486]
[1768639113358,0.01050442,95198.0,95194.0,0.01030854]
[1768639114661,0.01093205,95199.0,95195.0,0.01050475]
[1768639115636,0.00042774,95199.0,95195.0,0.01050475]
[1768639115854,0.00042774,95199.0,95196.0,0.01050464]
[1768639116825,0.01093205,95199.0,95195.0,0.01050475]
[1768639118131,0.01050442,95198.0,95193.0,0.01050497]
[1768639118438,0.01050442,95198.0,95194.0,0.01050486]
[1768639118659,0.00042774,95199.0,95195.0,0.02206002]
[1768639119186,0.01093205,95199.0,95195.0,0.01155527]
[1768639119603,0.00042774,95199.0,95195.0,0.02206002]
[1768639119811,0.00042774,95199.0,95196.0,0.01050464]
[1768639120262,0.01093205,95199.0,95195.0,0.02206002]
[1768639120826,0.01050442,95198.0,95195.0,0.01155527]
[1768639121050,0.00042774,95199.0,95195.0,0.01155527]
[1768639121290,0.00042774,95199.0,95195.0,0.06407863]
[1768639121468,0.00042774,95199.0,95195.0,0.02206002]
[1768639121868,0.01093205,95199.0,95195.0,0.01155527]
[1768639122280,0.01050442,95198.0,95193.0,0.01050497]
[1768639122618,0.01050442,95198.0,95194.0,0.01050486]
[1768639122751,0.01050453,95197.0,95193.0,0.01050497]
[1768639122951,0.01050453,95197.0,95192.0,0.01050508]
[1768639123159,0.01050453,95197.0,95193.0,0.01050497]
[1768639123936,0.01050453,95197.0,95194.0,0.0053323]
[1768639124190,0.01050442,95198.0,95194.0,0.0053323]
[1768639124391,0.01050453,95197.0,95193.0,0.01050497]
[1768639125332,0.01050453,95197.0,95192.0,0.01050508]
[1768639126359,0.01050464,95196.0,95190.0,0.1377853]
[1768639126499,0.01050464,95196.0,95190.0,0.12728]
[1768639126702,0.06302794,95196.0,95190.0,0.1377853]
[1768639127124,0.05252381,95195.0,95190.0,0.1377853]
[1768639127328,0.01050497,95193.0,95190.0,0.12728]
[1768639128726,0.01050486,95194.0,95190.0,0.12728]
[1768639128943,0.01050497,95193.0,95190.0,0.12728]
[1768639129161,0.01050486,95194.0,95190.0,0.12728]
[1768639129321,0.01050486,95194.0,95190.0,0.1377853]
[1768639129945,0.01050486,95194.0,95190.0,0.12728]
[1768639131045,0.01050497,95193.0,95190.0,0.12728]
[1768639133748,0.01050486,95194.0,95190.0,0.12728]
[1768639133958,0.01050475,95195.0,95190.0,0.19031172]
[1768639134165,0.01050464,95196.0,95191.0,0.01050519]
[1768639134596,0.01050486,95194.0,95190.0,0.1377853]
[1768639135113,0.01050486,95194.0,95190.0,0.12728]
[1768639135819,0.01050497,95193.0,95190.0,0.12728]
[1768639136572,0.01050464,95196.0,95192.0,0.01050508]
[1768639137411,0.01050453,95197.0,95192.0,0.01050508]
[1768639137644,0.01050464,95196.0,95192.0,0.01050508]
[1768639138199,0.01050464,95196.0,95191.0,0.01050519]
[1768639140426,0.01050475,95195.0,95190.0,0.1377853]
[1768639141257,0.01050475,95195.0,95191.0,0.01050519]
[1768639141583,0.01050486,95194.0,95190.0,0.1377853]
[1768639141794,0.01050475,95195.0,95191.0,0.01050519]
[1768639144602,0.01050486,95194.0,95190.0,0.1377853]
[1768639144816,0.01050497,95193.0,95190.0,0.12728]
[1768639145556,0.01050486,95194.0,95190.0,0.12728]
[1768639145754,0.01050497,95193.0,95190.0,0.12728]
[1768639147653,0.01050497,95193.0,95188.0,0.07353789]
[1768639147654,0.01050497,95193.0,95188.0,0.01050475]
[1768639147850,0.05252707,95189.0,95188.0,0.01050475]
[1768639148095,0.06303325,95188.0,95185.0,0.12728]
[1768639148312,0.06303325,95188.0,95179.0,0.01050651]
[1768639148313,0.06303757,95182.0,95175.0,0.01050696]
[1768639148523,0.05253022,95184.0,95182.0,0.0023403]
[1768639148732,0.06303645,95183.0,95182.0,0.0023403]
[1768639148948,0.01050662,95178.0,95173.0,0.01050718]
[1768639149184,0.05253219,95180.0,95175.0,0.03151162]
[1768639149399,0.01050629,95181.0,95175.0,0.04201858]
[1768639149588,0.0105064,95180.0,95176.0,0.01050685]
[1768639150231,0.01052176,95179.0,95176.0,0.01050685]
[1768639150549,0.01052176,95179.0,95174.0,0.01050707]
[1768639150752,0.02102827,95179.0,95176.0,0.01052176]
[1768639151154,0.01052176,95179.0,95176.0,0.01050685]
[1768639151835,0.01052176,95179.0,95175.0,0.02102872]
[1768639151996,0.01052176,95179.0,95176.0,0.01050685]
[1768639156370,0.01052176,95179.0,95175.0,0.02102872]
[1768639156803,0.01052176,95179.0,95176.0,0.01050685]
[1768639159806,0.02102827,95179.0,95175.0,0.01050696]
[1768639160310,0.01052176,95179.0,95176.0,0.01050685]
[1768639161374,0.06843861,95179.0,95173.0,0.01050718]
[1768639161793,0.02102827,95179.0,95173.0,0.01050718]
[1768639161998,0.01050662,95178.0,95174.0,0.01050707]
[1768639162399,0.01050662,95178.0,95173.0,0.01050718]
[1768639164188,0.01052176,95178.0,95173.0,0.01050718]
[1768639164347,0.02102838,95178.0,95173.0,0.01050718]
[1768639164880,0.02102838,95178.0,95174.0,0.01050707]
[1768639165795,0.01052176,95178.0,95174.0,0.01050707]
[1768639165951,0.02102838,95178.0,95174.0,0.01050707]
[1768639166536,0.01052176,95178.0,95174.0,0.01050707]
[1768639168643,0.01052176,95178.0,95175.0,0.01050696]
[1768639169868,0.01052176,95178.0,95175.0,0.06304129]
[1768639170067,0.01052176,95178.0,95176.0,0.05253412]
[1768639170657,0.01052176,95178.0,95177.0,0.0525337]
[1768639178221,0.05965609,95185.0,95181.0,0.01050629]
[1768639178595,0.04915024,95185.0,95181.0,0.01050629]
[1768639179817,0.04915024,95185.0,95182.0,0.01050618]
[1768639180599,0.04915024,95185.0,95182.0,0.01042753]
[1768639181660,0.05965587,95187.0,95182.0,0.01042753]
[1768639181874,0.05965587,95187.0,95183.0,0.01050607]
[1768639182406,0.01050574,95186.0,95182.0,0.01042753]
[1768639182593,0.05965598,95186.0,95182.0,0.01042753]
[1768639183957,0.04915024,95186.0,95183.0,0.01050607]
[1768639184232,0.04915024,95186.0,95182.0,0.01042753]
[1768639185061,0.04915024,95186.0,95183.0,0.01050607]
[1768639185659,0.04915024,95186.0,95181.0,0.01050629]
[1768639185660,0.05965598,95186.0,95181.0,0.01050629]
[1768639186009,0.05965598,95186.0,95182.0,0.01050618]
[1768639186728,0.04915024,95186.0,95182.0,0.01050618]
[1768639186927,0.01050552,95188.0,95183.0,0.01050607]
[1768639187131,0.05965576,95188.0,95184.0,0.01050596]
[1768639187326,0.05965576,95188.0,95183.0,0.01050607]
[1768639188057,0.05965576,95188.0,95184.0,0.01050596]
[1768639188351,0.05965576,95188.0,95182.0,0.01050618]
[1768639188352,0.01050563,95187.0,95182.0,0.01050618]
[1768639188974,0.01050574,95186.0,95182.0,0.01050618]
[1768639189128,0.01050574,95186.0,95181.0,0.01050629]
[1768639189533,0.01050596,95184.0,95180.0,0.0105064]
[1768639189933,0.01050585,95185.0,95180.0,0.0105064]
[1768639190338,0.01050596,95184.0,95180.0,0.0105064]
[1768639190766,0.01050585,95185.0,95180.0,0.0105064]
[1768639190969,0.01050596,95184.0,95180.0,0.0105064]
[1768639191169,0.01050585,95185.0,95181.0,0.01050629]
[1768639191687,0.01050574,95186.0,95181.0,0.01050629]
[1768639191893,0.01050574,95186.0,95182.0,0.01050618]
[1768639194104,0.01050574,95186.0,95181.0,0.01050629]
[1768639194527,0.01050574,95186.0,95182.0,0.01050618]
[1768639194736,0.01050574,95186.0,95181.0,0.01050629]
[1768639194874,0.01050563,95187.0,95182.0,0.01050618]
[1768639195274,0.01050574,95186.0,95182.0,0.01050618]
[1768639195928,0.01050563,95187.0,95182.0,0.01050618]
[1768639196293,0.01050574,95186.0,95182.0,0.01050618]
[1768639198147,0.01050574,95186.0,95181.0,0.01050629]
[1768639198948,0.01050574,95186.0,95182.0,0.01050618]
[1768639199113,0.01050563,95187.0,95183.0,0.01050607]
[1768639199715,0.01050563,95187.0,95182.0,0.01050618]
[1768639200315,0.01050585,95185.0,95180.0,0.0105064]
[1768639200564,0.01050607,95183.0,95179.0,0.01050651]
[1768639200936,0.01050596,95184.0,95180.0,0.0105064]
[1768639201316,0.01050585,95185.0,95180.0,0.0105064]
[1768639201910,0.01050574,95186.0,95181.0,0.01050629]
[1768639203029,0.01050585,95185.0,95181.0,0.01050629]
[1768639203307,0.01050574,95186.0,95181.0,0.01050629]
[1768639204087,0.05965576,95188.0,95183.0,0.01050607]
[1768639204252,0.04915024,95188.0,95184.0,0.01050596]
[1768639204458,0.05965576,95188.0,95184.0,0.01050596]
[1768639204699,0.05965576,95188.0,95183.0,0.06303627]
[1768639204700,0.01050574,95186.0,95182.0,0.01050618]
[1768639205684,0.01050574,95186.0,95181.0,0.01050629]
[1768639205899,0.01050585,95185.0,95180.0,0.0105064]
[1768639206480,0.01050596,95184.0,95180.0,0.0105064]
[1768639207103,0.01050607,95183.0,95179.0,0.01050651]
[1768639207483,0.01050607,95183.0,95178.0,0.01050662]
[1768639208032,0.01050618,95182.0,95178.0,0.01050662]
[1768639209604,0.01050629,95181.0,95176.0,0.06304098]
[1768639209799,0.01050629,95181.0,95177.0,0.01050674]
[1768639211371,0.0105064,95180.0,95176.0,0.01050685]
[1768639212213,0.01050629,95181.0,95176.0,0.01050685]
[1768639212561,0.01050618,95182.0,95178.0,0.01050662]
[1768639213088,0.01050618,95182.0,95177.0,0.01050674]
[1768639213283,0.01050618,95182.0,95178.0,0.01050662]
[1768639213633,0.01050629,95181.0,95176.0,0.01050685]
[1768639213833,0.06303784,95181.0,95176.0,0.01050685]
[1768639214057,0.01050629,95181.0,95176.0,0.01050685]
[1768639215053,0.01050618,95182.0,95177.0,0.01050674]
[1768639215256,0.01050629,95181.0,95177.0,0.01050674]
[1768639221550,0.01050618,95182.0,95177.0,0.01050674]
[1768639221709,0.01050618,95182.0,95177.0,0.0103107]
[1768639221891,0.01050629,95181.0,95176.0,0.01050685]
[1768639222126,0.01050629,95181.0,95177.0,0.01050674]
[1768639222524,0.01050629,95181.0,95177.0,0.01031074]
[1768639222747,0.01050629,95181.0,95176.0,0.01050685]
[1768639223438,0.0105064,95180.0,95176.0,0.01050685]
[1768639223606,0.01050629,95181.0,95177.0,0.01050674]
[1768639223824,0.01050629,95181.0,95176.0,0.01050685]
[1768639224316,0.0105064,95180.0,95175.0,0.01050696]
[1768639226416,0.01050629,95181.0,95177.0,0.01050674]
[1768639226597,0.01050607,95183.0,95178.0,0.01050662]
[1768639226797,0.01050629,95181.0,95177.0,0.01050674]
[1768639226997,0.01050607,95183.0,95178.0,0.06303976]
[1768639227207,0.01050585,95185.0,95181.0,0.01050629]
[1768639227405,0.01050574,95186.0,95181.0,0.01046088]
[1768639227618,0.01050585,95185.0,95181.0,0.01046088]
[1768639228870,0.01050563,95187.0,95182.0,0.01050618]
[1768639229174,0.05623265,95187.0,95182.0,0.01050618]
[1768639229520,0.01050563,95187.0,95182.0,0.01050618]
[1768639230328,0.01050574,95186.0,95181.0,0.01046088]
[1768639230529,0.01050574,95186.0,95182.0,0.01050618]
[1768639230766,0.01050563,95187.0,95183.0,0.01050607]
[1768639231004,0.0525271,95189.0,95185.0,0.01050585]
[1768639231005,0.05623243,95189.0,95185.0,0.01050585]
[1768639232160,0.05623243,95189.0,95184.0,0.01050596]
[1768639232387,0.01050552,95188.0,95184.0,0.01050596]
[1768639233603,0.01050552,95188.0,95184.0,0.01042728]
[1768639234815,0.01050552,95188.0,95183.0,0.01050607]
[1768639236920,0.01050552,95188.0,95184.0,0.01050596]
[1768639237281,0.04572702,95189.0,95185.0,0.01050585]
[1768639237481,0.04572702,95189.0,95186.0,0.01050574]
[1768639238892,0.01050519,95191.0,95187.0,0.01050563]
[1768639239092,0.05729501,95191.0,95187.0,0.01050563]
[1768639239670,0.0105053,95190.0,95185.0,0.01050585]
[1768639240052,0.05729501,95191.0,95186.0,0.01050574]
[1768639241238,0.0105053,95190.0,95186.0,0.01050574]
[1768639242499,0.0105053,95190.0,95185.0,0.01050585]
[1768639242500,0.01050541,95189.0,95185.0,0.01050585]
[1768639244189,0.0105053,95190.0,95184.0,0.01050596]
[1768639244397,0.0105053,95190.0,95185.0,0.01050585]
[1768639244599,0.01050541,95189.0,95185.0,0.01050585]
[1768639245116,0.01050552,95188.0,95184.0,0.01050596]
[1768639246583,0.01050541,95189.0,95185.0,0.01050585]
[1768639246915,0.0105053,95190.0,95185.0,0.01050585]
[1768639247122,0.0105053,95190.0,95186.0,0.01050574]
[1768639247550,0.05729501,95191.0,95186.0,0.01050574]
[1768639248666,0.05729501,95191.0,95187.0,0.01050563]
[1768639248807,0.04678982,95191.0,95187.0,0.01050563]
[1768639249758,0.04678982,95191.0,95188.0,0.01050552]
[1768639250830,0.05729501,95191.0,95185.0,0.06303495]
[1768639251553,0.1098214,95191.0,95186.0,0.01050574]
[1768639251855,0.05729501,95191.0,95186.0,0.01050574]
[1768639254382,0.05729501,95191.0,95186.0,0.01042706]
[1768639254793,0.0105053,95190.0,95186.0,0.01042706]
[1768639255944,0.05729501,95191.0,95186.0,0.01042706]
[1768639256116,0.0105053,95190.0,95185.0,0.01050585]
[1768639256524,0.12728,95194.0,95188.0,0.01050552]
[1768639256726,0.01050497,95193.0,95188.0,0.01050552]
[1768639257346,0.05639926,95193.0,95188.0,0.01050552]
[1768639257930,0.01050508,95192.0,95188.0,0.01050552]
[1768639258289,0.05639926,95193.0,95188.0,0.01050552]
[1768639259437,0.01050508,95192.0,95188.0,0.01050552]
[1768639259642,0.01050508,95192.0,95187.0,0.01050563]
[1768639260275,0.01050508,95192.0,95188.0,0.01050552]
[1768639260696,0.01050519,95191.0,95185.0,0.01050585]
[1768639260892,0.0105053,95190.0,95186.0,0.01050574]
[1768639261145,0.01050519,95191.0,95186.0,0.01050574]
[1768639261324,0.0105053,95190.0,95186.0,0.01050574]
[1768639261687,0.01050519,95191.0,95186.0,0.01050574]
[1768639261888,0.01050541,95189.0,95184.0,0.01050596]
[1768639262478,0.01050519,95191.0,95186.0,0.01050574]
[1768639262621,0.01050519,95191.0,95185.0,0.01050585]
[1768639262829,0.0105053,95190.0,95185.0,0.01050585]
[1768639263024,0.01050541,95189.0,95185.0,0.01050585]
[1768639263252,0.01050541,95189.0,95184.0,0.01050596]
[1768639263554,0.0105053,95190.0,95185.0,0.01050585]
[1768639263751,0.01050519,95191.0,95186.0,0.01050574]
[1768639263909,0.01050508,95192.0,95187.0,0.01050563]
[1768639264317,0.01050497,95193.0,95188.0,0.01050552]
[1768639264510,0.01050508,95192.0,95188.0,0.01050552]
[1768639264697,0.01050497,95193.0,95188.0,0.01050552]
[1768639264896,0.01050497,95193.0,95189.0,0.01050541]
[1768639265123,0.01050508,95192.0,95188.0,0.01050552]
[1768639265558,0.01050497,95193.0,95188.0,0.01050552]
[1768639265852,0.01050497,95193.0,95189.0,0.01050541]
[1768639266719,0.01050508,95192.0,95187.0,0.01050563]
[1768639266920,0.01050508,95192.0,95188.0,0.01050552]
[1768639267322,0.0105053,95190.0,95184.0,0.01050596]
[1768639267523,0.01050541,95189.0,95185.0,0.01050585]
[1768639267749,0.01050519,95191.0,95186.0,0.01050574]
[1768639267946,0.0105053,95190.0,95186.0,0.01050574]
[1768639269661,0.0105053,95190.0,95185.0,0.01050585]
[1768639270581,0.0105053,95190.0,95186.0,0.01050574]
[1768639270748,0.01050519,95191.0,95186.0,0.01050574]
[1768639270952,0.0105053,95190.0,95185.0,0.01050585]
[1768639271264,0.01050508,95192.0,95187.0,0.01050563]
[1768639271686,0.01050508,95192.0,95188.0,0.01050552]
[1768639271889,0.01050519,95191.0,95186.0,0.01050574]
[1768639272107,0.0105053,95190.0,95185.0,0.01050585]
[1768639273151,0.0105053,95190.0,95186.0,0.01050574]
[1768639273298,0.01050541,95189.0,95185.0,0.01050585]
[1768639273719,0.0105053,95190.0,95186.0,0.01050574]
[1768639273920,0.01050519,95191.0,95186.0,0.01050574]
[1768639274611,0.01050508,95192.0,95187.0,0.01050563]
[1768639274806,0.01050519,95191.0,95186.0,0.01050574]
[1768639275070,0.01050508,95192.0,95187.0,0.01050563]
[1768639275517,0.01050497,95193.0,95189.0,0.01050541]
[1768639275718,0.18367915,95194.0,95189.0,0.01043621]
[1768639276607,0.18367915,95194.0,95190.0,0.0105053]
[1768639276932,0.18367915,95194.0,95189.0,0.01043621]
[1768639277331,0.01050497,95193.0,95188.0,0.01050552]
[1768639277536,0.01050497,95193.0,95189.0,0.01050541]
[1768639278239,0.13778486,95194.0,95190.0,0.0105053]
[1768639278438,0.01050497,95193.0,95188.0,0.01050552]
[1768639278640,0.01050508,95192.0,95187.0,0.01050563]
[1768639278853,0.12728,95194.0,95190.0,0.0105053]
[1768639279057,0.13778486,95194.0,95190.0,0.01034794]
[1768639279811,0.12728,95195.0,95192.0,0.01050508]
[1768639280294,0.12728,95195.0,95191.0,0.01050519]
[1768639281291,0.12728,95195.0,95192.0,0.01050508]
[1768639281924,0.12728,95195.0,95192.0,0.0630301]
[1768639282252,0.00042774,95199.0,95196.0,0.01050464]
[1768639284527,0.01093205,95199.0,95194.0,0.01050486]
[1768639284929,0.01050442,95198.0,95194.0,0.01050486]
[1768639285152,0.00042774,95199.0,95196.0,0.01050464]
[1768639285347,0.00042774,95199.0,95195.0,0.06302841]
[1768639285348,0.01093205,95199.0,95195.0,0.01050475]
[1768639285902,0.00042774,95199.0,95196.0,0.01050464]
[1768639286098,0.00042774,95199.0,95196.0,0.06302782]
[1768639286497,0.00042774,95199.0,95197.0,0.05252259]
[1768639286712,0.00042774,95199.0,95196.0,0.0630277]
[1768639289044,0.00042774,95199.0,95196.0,0.01050464]
[1768639289667,0.00042774,95199.0,95196.0,0.06302773]
[1768639291268,0.00042774,95199.0,95196.0,0.01050464]
[1768639293019,0.00042774,95199.0,95195.0,0.01050475]
[1768639293690,0.01093205,95199.0,95195.0,0.01050475]
[1768639294036,0.01093205,95199.0,95194.0,0.01050486]
[1768639294446,0.01093205,95199.0,95195.0,0.01050475]
[1768639294651,0.01093205,95199.0,95195.0,0.01042608]
[1768639296482,0.00042774,95199.0,95195.0,0.01042608]
[1768639296782,0.00042774,95199.0,95196.0,0.01050464]
[1768639296919,0.00042774,95199.0,95195.0,0.01042608]
[1768639297369,0.01093205,95199.0,95195.0,0.01042608]
[1768639297813,0.01093205,95199.0,95194.0,0.01050486]
[1768639298407,0.01093205,95199.0,95198.0,0.00022442]
[1768639298762,0.01093205,95199.0,95195.0,0.01050475]
[1768639299490,0.01050442,95198.0,95194.0,0.01050486]
[1768639300946,0.01050453,95197.0,95193.0,0.01050497]
[1768639302341,0.01050442,95198.0,95194.0,0.01050486]
[1768639302904,0.01050442,95198.0,95193.0,0.01050497]
[1768639303381,0.01050442,95198.0,95194.0,0.01050486]
[1768639303884,0.01050442,95198.0,95193.0,0.01050497]
[1768639303885,0.01050453,95197.0,95190.0,0.05252642]
[1768639304745,0.01050464,95196.0,95190.0,0.0105053]
[1768639305851,0.0630279,95196.0,95190.0,0.0105053]
[1768639306271,0.01050475,95195.0,95191.0,0.01050519]
[1768639307343,0.01050497,95193.0,95187.0,0.06303371]
[1768639307552,0.01050519,95191.0,95186.0,0.01050574]
[1768639307761,0.0105053,95190.0,95186.0,0.01050574]
[1768639308820,0.0105053,95190.0,95185.0,0.05630947]
[1768639310843,0.0105053,95190.0,95186.0,0.01050574]
[1768639311445,0.01050519,95191.0,95186.0,0.01050574]
[1768639311666,0.01050519,95191.0,95187.0,0.01050563]
[1768639312214,0.01050508,95192.0,95187.0,0.01050563]
[1768639313907,0.01050519,95191.0,95186.0,0.01050574]
[1768639314531,0.0105053,95190.0,95186.0,0.01046033]
[1768639316183,0.01050552,95188.0,95183.0,0.01050607]
[1768639316569,0.01050552,95188.0,95184.0,0.01050596]
[1768639316790,0.01050541,95189.0,95184.0,0.01050596]
[1768639317219,0.0105053,95190.0,95185.0,0.01050585]
[1768639319074,0.0105053,95190.0,95186.0,0.01050574]
[1768639321417,0.0105053,95190.0,95186.0,0.01046033]
[1768639322768,0.01050519,95191.0,95187.0,0.01050563]
[1768639322965,0.01050607,95183.0,95179.0,0.13778651]
[1768639323209,0.05252845,95187.0,95179.0,0.13778651]
[1768639323210,0.0525292,95186.0,95180.0,0.0105064]
[1768639323531,0.01050596,95184.0,95180.0,0.0105064]
[1768639323931,0.01050585,95185.0,95180.0,0.0105064]
[1768639324538,0.01050607,95183.0,95179.0,0.01050651]
[1768639324873,0.05252763,95188.0,95179.0,0.06303906]
[1768639325198,0.05252867,95187.0,95179.0,0.06303906]
[1768639325544,0.01050585,95185.0,95181.0,0.01050629]
[1768639325943,0.01050585,95185.0,95180.0,0.0105064]
[1768639326142,0.01050585,95185.0,95181.0,0.01050629]
[1768639326653,0.01050585,95185.0,95181.0,0.01031027]
[1768639329458,0.01050585,95185.0,95181.0,0.00991918]
[1768639329634,0.01050585,95185.0,95179.0,0.01050651]
[1768639329854,0.01050574,95186.0,95180.0,0.0105064]
[1768639330058,0.01050574,95186.0,95179.0,0.01050651]
[1768639330059,0.01050585,95185.0,95179.0,0.01050651]
[1768639330665,0.01050596,95184.0,95180.0,0.0105064]
[1768639332819,0.01050607,95183.0,95179.0,0.01050651]
[1768639333080,0.01050596,95184.0,95179.0,0.01050651]
[1768639333728,0.01050596,95184.0,95180.0,0.0105064]
[1768639334058,0.01050596,95184.0,95179.0,0.01050651]
[1768639336152,0.01050596,95184.0,95180.0,0.0105064]
[1768639336734,0.01050607,95183.0,95176.0,0.01050685]
[1768639336947,0.01050629,95181.0,95177.0,0.01050674]
[1768639337329,0.01050618,95182.0,95177.0,0.01050674]
[1768639337895,0.01050618,95182.0,95178.0,0.01050662]
[1768639338877,0.01050618,95182.0,95177.0,0.01050674]
[1768639340856,0.01050618,95182.0,95175.0,0.13778696]
[1768639341080,0.05253162,95181.0,95175.0,0.13778696]
[1768639342092,0.0525321,95180.0,95175.0,0.13778696]
[1768639342309,0.01050651,95179.0,95175.0,0.13778696]
[1768639343985,0.01050651,95179.0,95175.0,0.12728]
[1768639345280,0.01050662,95178.0,95175.0,0.12728]
[1768639345578,0.05253377,95177.0,95175.0,0.12728]
[1768639346287,0.01050729,95172.0,95165.0,0.01066756]